bitfinex-derivatives/quotes_SOLF0:USTF0_20250709
["timestamp","ask_amount","ask_price","bid_price","bid_amount"]
[1752070669697,6.4814,154.27,154.25,6.482]
[1752070669893,4.71292373,154.29,154.25,6.482]
[1752070670198,6.4806,154.29,154.26,6.4813]
[1752070672401,2.2576,154.33,154.26,4.71292373]
[1752070672593,8.37197699,154.32,154.26,4.71292373]
[1752070672797,2.2576,154.33,154.26,4.71292373]
[1752070672995,13.08489069,154.32,154.24,4.71292373]
[1752070673197,4.71292373,154.29,154.22,4.71292373]
[1752070673995,4.71292373,154.29,154.19,1.0]
[1752070674197,4.71292373,154.29,154.23,4.71292373]
[1752070675095,6.4813,154.27,154.24,6.4822]
[1752070676002,6.4813,154.27,154.25,6.4819]
[1752070676902,4.71292373,154.29,154.24,6.4823]
[1752070677402,6.4816,154.26,154.24,6.4823]
[1752070677796,4.71292373,154.27,154.22,6.483]
[1752070678002,6.4823,154.25,154.22,6.483]
[1752070678805,4.71292373,154.29,154.21,4.71292373]
[1752070679098,4.71292373,154.29,154.26,6.4815]
[1752070679304,4.71292373,154.29,154.23,4.71292373]
[1752070679701,6.4814,154.27,154.24,6.4821]
[1752070680007,6.4814,154.27,154.23,4.71292373]
[1752070680800,6.4814,154.27,154.24,6.4822]
[1752070681199,4.71292373,154.29,154.22,4.71292373]
[1752070681200,6.481,154.28,154.22,4.71292373]
[1752070681403,6.481,154.28,154.25,6.4819]
[1752070681604,4.71292373,154.29,154.22,4.71292373]
[1752070681906,4.71292373,154.31,154.26,6.4813]
[1752070682107,8.39326311,154.3,154.26,6.4813]
[1752070682305,8.9787007,154.35,154.28,4.71292373]
[1752070682506,8.39430209,154.34,154.28,4.71292373]
[1752070682706,4.71292373,154.36,154.28,4.71292373]
[1752070682907,12.48787897,154.35,154.29,6.4801]
[1752070683102,8.39314297,154.34,154.29,6.4801]
[1752070683305,4.71292373,154.35,154.28,4.71292373]
[1752070683508,6.4789,154.33,154.3,6.4796]
[1752070683708,4.71292373,154.35,154.3,6.4796]
[1752070683908,6.479,154.33,154.3,6.4796]
[1752070684207,4.71292373,154.35,154.28,4.71292373]
[1752070684410,8.3961821,154.34,154.28,4.71292373]
[1752070684608,6.4791,154.32,154.28,4.71292373]
[1752070685012,6.4791,154.32,154.29,6.48]
[1752070685205,6.4791,154.32,154.25,5.4739]
[1752070685402,4.71292373,154.35,154.29,4.71292373]
[1752070685606,9.00421609,154.37,154.29,4.71292373]
[1752070685607,8.39716793,154.34,154.32,6.4789]
[1752070685808,18.21563982,154.38,154.31,4.71292373]
[1752070686007,6.4776,154.36,154.31,4.71292373]
[1752070686308,8.39703492,154.35,154.26,12.9629]
[1752070686509,6.4782,154.35,154.3,4.71292373]
[1752070687008,6.4782,154.35,154.32,6.4788]
[1752070687210,9.21142373,154.38,154.29,4.71292373]
[1752070687408,12.56204642,154.37,154.29,4.71292373]
[1752070687607,17.27497015,154.36,154.29,4.71292373]
[1752070687815,6.4785,154.34,154.31,6.4793]
[1752070688116,4.71292373,154.36,154.31,6.4793]
[1752070688410,6.4785,154.34,154.31,6.4793]
[1752070689002,4.71292373,154.36,154.3,6.4797]
[1752070689204,4.71292373,154.36,154.26,1.0]
[1752070689205,17.2871572,154.35,154.28,4.71292373]
[1752070689513,8.44882703,154.34,154.28,4.71292373]
[1752070689807,14.92782703,154.33,154.3,6.4797]
[1752070690012,6.479,154.33,154.3,6.4797]
[1752070690317,8.45374738,154.32,154.26,4.71292373]
[1752070690609,4.71292373,154.33,154.26,4.71292373]
[1752070690610,8.45374738,154.31,154.26,4.71292373]
[1752070690811,8.45374738,154.3,154.26,4.71292373]
[1752070691014,4.71292373,154.33,154.28,6.4806]
[1752070691205,12.61936501,154.32,154.26,4.71292373]
[1752070691409,12.61936501,154.31,154.26,4.71292373]
[1752070691610,14.95807232,154.3,154.27,6.481]
[1752070691812,4.71292373,154.31,154.24,4.71292373]
[1752070692116,8.47852144,154.3,154.24,4.71292373]
[1752070692419,11.19262373,154.31,154.24,4.71292373]
[1752070692622,8.48126801,154.3,154.28,6.4806]
[1752070692916,6.48,154.3,154.28,6.4806]
[1752070693219,4.71292373,154.31,154.28,6.4806]
[1752070693519,8.45509877,154.3,154.28,6.4806]
[1752070693716,6.4797,154.31,154.28,6.4806]
[1752070693916,8.45528101,154.3,154.28,6.4806]
[1752070694111,6.4797,154.31,154.28,6.4806]
[1752070694317,8.45761268,154.3,154.28,6.4806]
[1752070694518,6.4797,154.31,154.28,6.4806]
[1752070694819,8.45782289,154.3,154.28,6.4806]
[1752070695021,6.4797,154.31,154.28,6.4806]
[1752070695316,8.46001693,154.3,154.28,6.4806]
[1752070695517,6.4797,154.31,154.28,6.4806]
[1752070695721,8.42487533,154.3,154.28,6.4806]
[1752070695917,6.4801,154.3,154.28,6.4806]
[1752070696420,6.4797,154.31,154.28,6.4806]
[1752070696621,4.71292373,154.33,154.26,4.71292373]
[1752070696822,8.42648772,154.32,154.26,4.71292373]
[1752070697016,6.4789,154.33,154.3,6.4797]
[1752070697216,8.42765765,154.32,154.3,6.4797]
[1752070697517,8.46255838,154.31,154.26,4.71292373]
[1752070697819,13.71713982,154.35,154.28,4.71292373]
[1752070698012,12.60912486,154.34,154.28,4.71292373]
[1752070698212,13.71713982,154.35,154.3,6.4797]
[1752070698213,19.08802486,154.33,154.3,6.4797]
[1752070698415,8.46238568,154.32,154.3,6.4797]
[1752070698716,6.4789,154.33,154.3,6.4797]
[1752070698923,14.91456421,154.32,154.28,4.71292373]
[1752070699117,8.43550281,154.31,154.26,4.71292373]
[1752070699312,6.4792,154.32,154.25,4.5857]
[1752070699620,6.4792,154.32,154.26,4.71292373]
[1752070699621,8.43770981,154.31,154.26,4.71292373]
[1752070699819,13.71713982,154.35,154.29,6.4803]
[1752070700020,12.58612205,154.34,154.29,6.4803]
[1752070700320,6.4796,154.31,154.29,6.4803]
[1752070700521,13.71713982,154.35,154.29,6.4803]
[1752070700723,12.5990205,154.34,154.29,6.4803]
[1752070700921,12.5990205,154.33,154.28,4.71292373]
[1752070701119,8.43979197,154.32,154.28,4.71292373]
[1752070701319,8.43979197,154.32,154.25,4.5857]
[1752070701320,9.00421609,154.36,154.3,4.71292373]
[1752070701621,19.09802326,154.35,154.32,6.4788]
[1752070701924,12.61992326,154.34,154.33,6.4787]
[1752070702114,8.459603,154.34,154.33,6.4787]
[1752070702319,8.459603,154.34,154.29,4.71292373]
[1752070702519,4.71292373,154.36,154.3,6.4796]
[1752070702819,6.4786,154.34,154.3,6.4796]
[1752070703015,4.71292373,154.36,154.3,6.4796]
[1752070703216,6.4792,154.32,154.29,6.4801]
[1752070704425,6.4792,154.32,154.3,6.4799]
[1752070705526,6.4792,154.32,154.29,6.4802]
[1752070706327,4.71292373,154.34,154.26,4.71292373]
[1752070706528,8.3471402,154.33,154.26,4.71292373]
[1752070706723,4.71292373,154.34,154.26,4.71292373]
[1752070706926,4.71292373,154.34,154.28,4.71292373]
[1752070707128,4.71292373,154.36,154.28,4.71292373]
[1752070707329,18.9908494,154.35,154.32,6.4789]
[1752070707628,4.71292373,154.36,154.3,4.71292373]
[1752070707928,4.4059,154.37,154.3,4.71292373]
[1752070708130,8.34462062,154.36,154.3,4.71292373]
[1752070708334,6.4772,154.37,154.33,6.4783]
[1752070708530,8.34316622,154.36,154.33,6.4783]
[1752070708830,4.71292373,154.38,154.33,6.4783]
[1752070709029,6.4777,154.36,154.33,6.4783]
[1752070709226,4.71292373,154.38,154.34,6.4782]
[1752070709729,4.71292373,154.38,154.31,4.71292373]
[1752070709928,559.98,154.4,154.31,4.71292373]
[1752070710223,17.21957236,154.39,154.31,4.71292373]
[1752070710427,12.50664863,154.38,154.31,4.71292373]
[1752070710631,6.4768,154.38,154.31,4.71292373]
[1752070711027,6.4768,154.38,154.35,6.4776]
[1752070711530,6.477,154.37,154.35,6.4776]
[1752070712731,6.477,154.37,154.31,4.71292373]
[1752070713624,4.71292373,154.39,154.26,13.9626]
[1752070713825,98.6038557,154.41,154.33,4.71292373]
[1752070714023,12.54521802,154.4,154.33,4.71292373]
[1752070714232,14.8498611,154.39,154.36,6.4772]
[1752070714435,6.4765,154.39,154.36,6.4772]
[1752070714731,6.4766,154.38,154.35,6.4776]
[1752070715324,6.4764,154.39,154.33,4.71292373]
[1752070715531,98.6038557,154.41,154.33,4.71292373]
[1752070715731,12.55984135,154.4,154.33,4.71292373]
[1752070715930,6.4766,154.38,154.35,6.4775]
[1752070716231,6.4766,154.38,154.33,4.71292373]
[1752070716430,6.4766,154.38,154.35,6.4775]
[1752070716628,6.4766,154.38,154.33,4.71292373]
[1752070717325,6.4766,154.38,154.36,6.4774]
[1752070717727,6.4766,154.38,154.33,4.71292373]
[1752070717929,4.71292373,154.38,154.34,6.4779]
[1752070718629,4.71292373,154.38,154.33,6.4785]
[1752070718830,4.71292373,154.38,154.3,4.71292373]
[1752070719026,8.37825546,154.37,154.3,4.71292373]
[1752070719228,4.71292373,154.38,154.3,4.71292373]
[1752070719633,6.4774,154.36,154.3,4.71292373]
[1752070720126,6.4774,154.36,154.33,6.4783]
[1752070721236,6.4774,154.36,154.34,6.4782]
[1752070722734,6.4773,154.37,154.3,4.71292373]
[1752070723236,6.4773,154.37,154.34,6.478]
[1752070724035,6.4775,154.36,154.33,6.4785]
[1752070724234,4.71292373,154.4,154.31,4.71292373]
[1752070724436,19.03580289,154.39,154.31,4.71292373]
[1752070724636,6.4765,154.39,154.36,6.4772]
[1752070724830,4.71292373,154.4,154.36,6.4772]
[1752070725033,6.4768,154.38,154.36,6.4772]
[1752070725636,6.4764,154.39,154.37,6.477]
[1752070726039,6.4764,154.39,154.32,4.71292373]
[1752070726241,6.4764,154.39,154.37,6.477]
[1752070726932,4.71292373,154.41,154.37,6.477]
[1752070727137,12.54351117,154.4,154.37,6.477]
[1752070727339,4.71292373,154.41,154.38,6.4764]
[1752070727535,12.53828401,154.4,154.38,6.4764]
[1752070727736,4.71292373,154.41,154.38,6.4764]
[1752070727937,12.53828401,154.4,154.38,6.4764]
[1752070728139,6.476,154.4,154.38,6.4764]
[1752070728340,4.71292373,154.41,154.34,4.71292373]
[1752070728540,14.84512755,154.4,154.31,1.0]
[1752070728736,6.476,154.4,154.35,4.71292373]
[1752070728940,4.71292373,154.42,154.38,6.4763]
[1752070729144,8.36826504,154.41,154.35,4.71292373]
[1752070729342,4.71292373,154.43,154.35,4.71292373]
[1752070729545,12.53414472,154.42,154.35,4.71292373]
[1752070729842,14.84344091,154.41,154.38,6.4763]
[1752070730139,6.4754,154.41,154.38,6.4763]
[1752070730340,6.4758,154.4,154.38,6.4763]
[1752070731442,6.4755,154.41,154.38,6.4763]
[1752070731738,6.4749,154.42,154.39,6.4761]
[1752070732445,6.4753,154.41,154.39,6.4761]
[1752070733134,6.4753,154.41,154.38,6.4764]
[1752070733338,6.4758,154.4,154.37,4.71292373]
[1752070733641,9.05302373,154.44,154.37,4.71292373]
[1752070733841,8.39338573,154.43,154.37,4.71292373]
[1752070734042,4.71292373,154.45,154.41,6.4751]
[1752070734238,8.3928082,154.44,154.41,6.4751]
[1752070734435,9.00421609,154.48,154.41,6.4751]
[1752070734436,4.71292373,154.48,154.41,4.71292373]
[1752070734636,16.86507298,154.47,154.44,6.4737]
[1752070734834,4.17493909,154.46,154.44,6.4737]
[1752070735041,4.17493909,154.45,154.44,6.4737]
[1752070735237,4.71292373,154.48,154.4,4.71292373]
[1752070735444,4.71292373,154.46,154.38,4.71292373]
[1752070735746,6.4746,154.43,154.38,4.71292373]
[1752070736349,6.4743,154.44,154.41,6.4753]
[1752070736547,4.71292373,154.45,154.38,4.71292373]
[1752070737243,6.4735,154.46,154.43,6.4744]
[1752070737446,4.71292373,154.49,154.42,4.71292373]
[1752070737855,6.473,154.47,154.44,6.474]
[1752070739247,6.473,154.47,154.45,6.4736]
[1752070739747,4.71292373,154.49,154.42,4.71292373]
[1752070740551,4.71292373,154.51,154.44,4.71292373]
[1752070741048,6.4722,154.49,154.46,6.473]
[1752070741647,4.71292373,154.49,154.41,4.4135]
[1752070741948,4.71292373,154.49,154.37,4.71292373]
[1752070741949,4.71292373,154.45,154.37,4.71292373]
[1752070742250,8.43725961,154.44,154.38,6.4766]
[1752070742443,4.71292373,154.42,154.38,6.4766]
[1752070742747,6.4754,154.41,154.38,6.4766]
[1752070743349,4.36807965,154.46,154.39,4.71292373]
[1752070743546,4.71292373,154.52,154.45,4.71292373]
[1752070743844,6.4717,154.5,154.47,6.4725]
[1752070744050,8.57244993,154.49,154.45,4.71292373]
[1752070744345,10.67802538,154.48,154.45,11.18652373]
[1752070744550,4.71292373,154.5,154.43,4.71292373]
[1752070744749,8.572177,154.49,154.41,4.3191]
[1752070744949,6.4723,154.49,154.46,6.473]
[1752070745551,6.4724,154.48,154.46,6.473]
[1752070746251,6.4724,154.48,154.45,6.4735]
[1752070746951,6.4722,154.49,154.46,6.4731]
[1752070747550,6.4722,154.49,154.47,6.4728]
[1752070747850,6.4722,154.49,154.44,4.71292373]
[1752070748150,6.4725,154.48,154.44,4.71292373]
[1752070748551,4.71292373,154.51,154.44,4.71292373]
[1752070748752,6.4722,154.49,154.46,6.4729]
[1752070749545,9.02546968,154.56,154.48,4.71292373]
[1752070749752,17.46098971,154.55,154.48,4.71292373]
[1752070749950,6.4718,154.5,154.48,4.71292373]
[1752070750153,4.5528,154.56,154.41,5.3191]
[1752070750352,21.65213914,154.55,154.48,4.71292373]
[1752070750556,12.56804499,154.54,154.48,11.18502373]
[1752070750851,8.37558342,154.53,154.48,4.71292373]
[1752070751052,6.4712,154.51,154.48,11.18512373]
[1752070751353,4.71292373,154.53,154.46,4.71292373]
[1752070751553,4.71292373,154.53,154.5,6.4715]
[1752070751554,6.4703,154.53,154.5,6.4715]
[1752070751752,6.4703,154.53,154.48,4.71292373]
[1752070751753,4.71292373,154.55,154.48,4.71292373]
[1752070751953,4.5528,154.56,154.41,5.3191]
[1752070751954,12.57770598,154.54,154.41,5.3191]
[1752070752154,9.26572373,154.56,154.47,4.71292373]
[1752070752350,4.71292373,154.54,154.47,4.71292373]
[1752070752555,12.57485816,154.53,154.47,4.71292373]
[1752070752755,4.71292373,154.54,154.49,6.4717]
[1752070752956,8.37331987,154.53,154.49,6.4717]
[1752070753149,4.71292373,154.54,154.49,6.4717]
[1752070753349,6.4709,154.52,154.49,6.4717]
[1752070753955,6.4704,154.53,154.5,6.4714]
[1752070754152,4.5528,154.56,154.48,4.71292373]
[1752070754455,12.57001018,154.55,154.51,6.4708]
[1752070754654,4.5528,154.56,154.43,12.9483]
[1752070754849,8.36881578,154.55,154.5,4.71292373]
[1752070755054,4.5528,154.56,154.52,4.71292373]
[1752070755454,4.71292373,154.6,154.55,6.4693]
[1752070755655,12.61056073,154.59,154.54,4.71292373]
[1752070755857,563.91292373,154.61,154.54,4.71292373]
[1752070756061,4.71292373,154.59,154.53,6.4701]
[1752070756257,12.60974895,154.58,154.53,6.4701]
[1752070756560,4.71292373,154.59,154.53,6.4701]
[1752070756863,8.39384933,154.58,154.53,6.4701]
[1752070757161,4.71292373,154.59,154.52,11.18352373]
[1752070757357,12.59344109,154.58,154.5,4.71292373]
[1752070757562,17.30690869,154.57,154.5,4.71292373]
[1752070757765,12.59398496,154.56,154.5,4.71292373]
[1752070757958,4.71292373,154.55,154.48,4.71292373]
[1752070758358,6.4709,154.52,154.49,6.4717]
[1752070758561,6.4709,154.52,154.48,4.71292373]
[1752070758859,6.4709,154.52,154.49,6.4717]
[1752070759165,6.4712,154.51,154.49,6.4717]
[1752070759358,4.35557569,154.58,154.5,4.71292373]
[1752070759566,4.19675411,154.57,154.52,4.71292373]
[1752070759762,4.71292373,154.6,154.52,11.18352373]
[1752070760058,16.94631104,154.59,154.52,4.71292373]
[1752070760258,17.30406525,154.58,154.51,6.4709]
[1752070760564,12.59028343,154.57,154.51,6.4709]
[1752070760863,4.71292373,154.58,154.51,6.4709]
[1752070761064,6.4701,154.54,154.51,6.4709]
[1752070761564,6.4705,154.53,154.5,6.4714]
[1752070761958,4.71292373,154.51,154.41,4.71292373]
[1752070762160,13.73839341,154.56,154.43,4.71292373]
[1752070762361,4.71292373,154.54,154.45,4.71292373]
[1752070762562,6.4714,154.51,154.48,6.4721]
[1752070762766,4.71292373,154.52,154.44,4.71292373]
[1752070763166,6.4722,154.49,154.44,4.71292373]
[1752070763667,6.4718,154.5,154.44,4.71292373]
[1752070764167,6.4714,154.51,154.48,6.4722]
[1752070764364,4.4413,154.55,154.46,4.71292373]
[1752070764572,17.34220746,154.54,154.49,6.4717]
[1752070764872,4.71292373,154.54,154.48,4.71292373]
[1752070765168,4.4413,154.55,154.52,6.4705]
[1752070765169,6.4695,154.55,154.52,6.4705]
[1752070765667,6.4691,154.56,154.53,6.4701]
[1752070765968,4.71292373,154.58,154.53,6.4701]
[1752070766166,12.60202279,154.57,154.53,6.4701]
[1752070766366,4.71292373,154.58,154.53,6.4701]
[1752070766566,4.21310486,154.57,154.52,4.71292373]
[1752070766764,9.00142373,154.6,154.54,4.71292373]
[1752070766960,6.4685,154.58,154.55,6.4692]
[1752070767164,6.4685,154.58,154.54,4.71292373]
[1752070767573,9.00142373,154.6,154.56,6.469]
[1752070767762,12.58376473,154.59,154.54,4.71292373]
[1752070767969,9.00142373,154.6,154.54,4.71292373]
[1752070768262,6.4685,154.58,154.55,6.4692]
[1752070768770,4.71292373,154.61,154.53,4.71292373]
[1752070769070,12.58393617,154.6,154.55,4.71292373]
[1752070769269,6.4676,154.6,154.57,6.4684]
[1752070769469,13.73839341,154.64,154.55,4.71292373]
[1752070769669,12.58315894,154.63,154.55,4.71292373]
[1752070769874,14.85711216,154.62,154.57,4.71292373]
[1752070770167,13.56476968,154.66,154.57,4.71292373]
[1752070770363,21.63868536,154.65,154.57,4.71292373]
[1752070770561,12.57921504,154.64,154.51,3.293]
[1752070770762,4.19340404,154.63,154.59,4.71292373]
[1752070770969,8.45853676,154.62,154.59,4.71292373]
[1752070771170,6.4664,154.63,154.6,6.4671]
[1752070771574,9.25222373,154.66,154.58,4.71292373]
[1752070771772,6.4659,154.64,154.58,4.71292373]
[1752070771972,8.45661926,154.63,154.58,4.71292373]
[1752070772165,6.4659,154.64,154.6,6.467]
[1752070772365,8.45261264,154.63,154.58,4.71292373]
[1752070772562,9.25222373,154.66,154.58,4.71292373]
[1752070772763,12.68327103,154.65,154.58,4.71292373]
[1752070772964,12.68327103,154.64,154.6,6.467]
[1752070773264,9.25222373,154.66,154.59,4.71292373]
[1752070773467,12.68097309,154.65,154.59,4.71292373]
[1752070773769,12.68097309,154.64,154.52,62.0]
[1752070774073,9.25222373,154.66,154.59,6.4675]
[1752070774074,6.4667,154.62,154.59,6.4675]
[1752070775273,6.467,154.61,154.59,6.4675]
[1752070775766,6.4673,154.61,154.55,4.71292373]
[1752070776569,4.71292373,154.62,154.55,4.71292373]
[1752070776570,6.4675,154.6,154.55,4.71292373]
[1752070776968,6.4675,154.6,154.57,6.4684]
[1752070777168,4.71292373,154.62,154.55,4.71292373]
[1752070777469,12.73973953,154.61,154.55,4.71292373]
[1752070777667,13.20024063,154.6,154.53,4.71292373]
[1752070777867,12.74039094,154.59,154.51,8.00592373]
[1752070778065,6.469,154.56,154.53,6.47]
[1752070778266,4.71292373,154.6,154.51,7.00592373]
[1752070778467,12.74557811,154.59,154.51,7.00592373]
[1752070778664,6.4692,154.56,154.53,6.47]
[1752070778876,4.71292373,154.58,154.51,7.00592373]
[1752070779071,4.71292373,154.58,154.51,2.293]
[1752070779072,8.49393958,154.57,154.51,2.293]
[1752070779276,6.4698,154.55,154.51,8.7637]
[1752070779573,6.4698,154.55,154.51,2.293]
[1752070779964,6.4699,154.54,154.52,6.4707]
[1752070780674,6.4699,154.54,154.51,8.764]
[1752070780969,6.4703,154.53,154.5,558.76]
[1752070781175,4.71292373,154.57,154.51,6.4709]
[1752070781476,6.4703,154.54,154.51,6.4709]
[1752070781674,4.71292373,154.55,154.5,558.76]
[1752070781876,8.45085661,154.54,154.5,558.76]
[1752070782071,6.471,154.52,154.48,1.0]
[1752070782272,6.471,154.52,154.49,6.4717]
[1752070782472,6.4711,154.51,154.49,6.4717]
[1752070782774,4.71292373,154.53,154.48,6.4723]
[1752070782970,8.45391421,154.52,154.45,5.71292373]
[1752070783176,4.71292373,154.53,154.45,4.71292373]
[1752070783374,8.45517296,154.52,154.47,6.4727]
[1752070783574,6.4718,154.5,154.47,6.4727]
[1752070783978,4.71292373,154.53,154.44,3.2155]
[1752070784177,6.4714,154.51,154.45,4.71292373]
[1752070784974,6.4716,154.5,154.48,6.4721]
[1752070785276,4.71292373,154.53,154.45,4.71292373]
[1752070785576,6.4719,154.5,154.47,6.4727]
[1752070785777,6.4719,154.5,154.45,4.71292373]
[1752070785977,6.4719,154.5,154.44,2.2155]
[1752070786177,6.4719,154.5,154.44,6.92842373]
[1752070786771,4.71292373,154.51,154.44,2.2155]
[1752070787177,4.71292373,154.51,154.43,7.02292373]
[1752070787377,6.4727,154.48,154.43,7.02292373]
[1752070788280,6.473,154.47,154.44,6.4738]
[1752070788482,4.71292373,154.49,154.42,558.6]
[1752070788682,8.46310323,154.48,154.42,558.6]
[1752070788882,4.71292373,154.49,154.43,6.4744]
[1752070789282,6.4732,154.47,154.43,6.4744]
[1752070789581,4.71292373,154.49,154.43,6.4744]
[1752070789781,6.4733,154.46,154.43,6.4744]
[1752070790082,4.71292373,154.49,154.42,558.6]
[1752070790083,4.71292373,154.49,154.44,6.474]
[1752070790383,4.5072,154.53,154.44,4.71292373]
[1752070790581,4.71292373,154.51,154.46,6.473]
[1752070791080,4.71292373,154.49,154.42,559.6]
[1752070791284,8.42624193,154.48,154.42,558.6]
[1752070791578,6.4735,154.46,154.42,558.6]
[1752070791784,4.71292373,154.47,154.42,558.6]
[1752070792379,4.71292373,154.45,154.39,4.71292373]
[1752070793388,6.4747,154.43,154.4,6.4756]
[1752070793587,4.71292373,154.45,154.37,196.93072373]
[1752070793786,6.4749,154.42,154.39,6.4757]
[1752070794287,4.71292373,154.45,154.37,196.93072373]
[1752070794584,4.71292373,154.45,154.37,196.89072373]
[1752070795282,4.71292373,154.45,154.4,6.4755]
[1752070795283,6.4747,154.43,154.4,6.4755]
[1752070796585,6.4743,154.44,154.41,6.4752]
[1752070797181,4.71292373,154.47,154.4,4.71292373]
[1752070797685,6.4735,154.46,154.43,6.4745]
[1752070798288,4.0707351,154.51,154.4,4.71292373]
[1752070798490,4.71292373,154.5,154.42,4.71292373]
[1752070798781,6.4721,154.49,154.46,6.473]
[1752070799386,6.4721,154.49,154.47,6.4727]
[1752070799583,6.4717,154.5,154.47,6.4727]
[1752070800286,4.5072,154.53,154.45,4.71292373]
[1752070800481,4.5072,154.53,154.47,4.71292373]
[1752070800678,6.471,154.52,154.49,6.4717]
[1752070801187,4.5072,154.53,154.48,6.4721]
[1752070801388,4.71292373,154.57,154.49,4.71292373]
[1752070801588,8.41333439,154.56,154.49,4.71292373]
[1752070801790,6.4706,154.53,154.5,6.4715]
[1752070803294,4.71292373,154.54,154.44,5.5914]
[1752070803588,4.71292373,154.54,154.46,4.71292373]
[1752070803789,6.4718,154.5,154.47,6.4725]
[1752070804383,6.4718,154.5,154.48,6.4724]
[1752070805190,6.4718,154.5,154.47,6.4726]
[1752070805594,6.472,154.49,154.47,6.4726]
[1752070805791,6.472,154.49,154.46,11.18602373]
[1752070805990,6.472,154.49,154.46,4.71292373]
[1752070806191,6.4717,154.5,154.47,6.4727]
[1752070806494,4.71292373,154.52,154.46,4.71292373]
[1752070806687,6.4719,154.5,154.47,6.4728]
[1752070806891,4.71292373,154.52,154.45,4.71292373]
[1752070807294,6.4716,154.5,154.47,6.4726]
[1752070809997,6.472,154.49,154.47,6.4726]
[1752070810295,4.71292373,154.54,154.47,6.4726]
[1752070810595,4.71292373,154.54,154.46,4.71292373]
[1752070811096,6.4719,154.5,154.47,6.4725]
[1752070811898,6.472,154.49,154.46,11.18592373]
[1752070812292,6.472,154.49,154.46,4.71292373]
[1752070812995,6.472,154.49,154.46,11.18592373]
[1752070813790,6.472,154.49,154.47,6.4728]
[1752070813995,6.4717,154.5,154.47,6.4728]
[1752070814697,6.472,154.49,154.47,6.4728]
[1752070814897,6.472,154.49,154.46,11.18602373]
[1752070815099,4.71292373,154.53,154.46,11.18602373]
[1752070815400,6.4722,154.49,154.46,11.18602373]
[1752070815597,6.4722,154.49,154.47,6.4727]
[1752070815797,6.4722,154.49,154.44,4.71292373]
[1752070816298,6.4724,154.48,154.46,6.473]
[1752070817189,6.4722,154.49,154.46,6.473]
[1752070818501,4.71292373,154.53,154.46,6.473]
[1752070818699,8.50009468,154.52,154.46,6.473]
[1752070818902,8.50009468,154.51,154.46,6.473]
[1752070819101,4.71292373,154.53,154.46,6.473]
[1752070819400,8.50535341,154.52,154.46,6.473]
[1752070819601,6.4723,154.49,154.46,6.473]
[1752070819901,6.4723,154.49,154.47,6.4727]
[1752070820700,6.4723,154.49,154.46,6.473]
[1752070821701,6.4728,154.48,154.45,6.4735]
[1752070822400,6.4728,154.48,154.46,6.4732]
[1752070822605,6.4722,154.49,154.46,6.4732]
[1752070823501,6.4725,154.48,154.45,6.4735]
[1752070823696,6.4725,154.48,154.44,4.71292373]
[1752070824104,6.4725,154.48,154.46,6.4731]
[1752070824401,6.87062373,154.52,154.44,4.71292373]
[1752070824594,12.66455262,154.51,154.44,4.71292373]
[1752070824798,8.53204581,154.5,154.44,4.71292373]
[1752070824998,6.87062373,154.52,154.44,4.71292373]
[1752070825197,8.5342056,154.51,154.44,4.71292373]
[1752070825398,15.0061056,154.5,154.44,4.71292373]
[1752070825698,2.1577,154.52,154.44,4.71292373]
[1752070826000,12.66835761,154.51,154.44,4.71292373]
[1752070826197,6.4721,154.49,154.47,6.4726]
[1752070826505,8.5346443,154.5,154.44,4.71292373]
[1752070826702,11.96737147,154.55,154.46,4.71292373]
[1752070827007,8.50227171,154.54,154.42,13.9497]
[1752070827195,8.50136308,154.53,154.46,4.68922559]
[1752070827400,6.4718,154.5,154.48,6.4722]
[1752070828704,4.68922559,154.54,154.48,4.68922559]
[1752070828906,4.13441793,154.53,154.48,4.68922559]
[1752070829199,6.471,154.52,154.49,6.4717]
[1752070829404,8.53660094,154.51,154.49,6.4717]
[1752070830404,6.471,154.52,154.5,6.4715]
[1752070831500,9.05428631,154.56,154.5,4.68922559]
[1752070831705,8.55321915,154.55,154.52,4.68922559]
[1752070832009,8.55321915,154.54,154.52,11.15952559]
[1752070832207,6.4696,154.55,154.52,4.68922559]
[1752070832507,6.4692,154.56,154.53,6.4703]
[1752070832810,8.55006219,154.55,154.53,6.4703]
[1752070833002,6.4692,154.56,154.53,6.4703]